fUSD/lending_fUSD_20250219
["ID","MTS","AMOUNT","RATE_DAILY","PERIOD"]
[353692839,1739991097871,-500.0,0.00011859,2]
[353692840,1739991097881,-500.0,0.00011859,2]
[353692841,1739991097891,-631.47,0.00011859,2]
[353692842,1739991097900,-643.34,0.00011859,2]
[353692843,1739991097910,-862.23,0.00011859,2]
[353692844,1739991097920,-1682.85,0.00011859,2]
[353692845,1739991097930,-972.98,0.00011859,2]
[353692846,1739991097937,-1170.77,0.00011859,2]
[353692847,1739991097947,-1036.38,0.00011859,2]
[353692848,1739991097956,-665.65,0.00011859,2]
[353692849,1739991097966,-500.0,0.00011859,2]
[353692850,1739991097976,-816.32,0.00011859,2]
[353692851,1739991097985,-500.0,0.00011859,2]
[353692852,1739991097995,-1472.21,0.00011859,2]
[353692853,1739991098005,-1143.91,0.00011859,2]
[353692854,1739991098014,-500.0,0.00011859,2]
[353692855,1739991098025,-7684.69,0.00011859,2]
[353692856,1739991098035,-500.0,0.00011859,2]
[353692857,1739991098044,-1239.55,0.00011859,2]
[353692858,1739991098054,-1609.82,0.00011859,2]
[353692859,1739991098063,-694.56,0.00011859,2]
[353692860,1739991098074,-1000.0,0.00011859,2]
[353692861,1739991098083,-500.0,0.00011859,2]
[353692862,1739991098093,-677.2,0.00011859,2]
[353692863,1739991098102,-1545.54,0.00011859,2]
[353692864,1739991098112,-1288.85,0.00011859,2]
[353692865,1739991098122,-1349.76,0.00011859,2]
[353692866,1739991098131,-591.57,0.00011859,2]
[353692867,1739991098141,-500.0,0.00011859,2]
[353692868,1739991098151,-417.85623309,0.00011859,2]
[353692869,1739991098160,-1045.64,0.00011859,2]
[353692870,1739991098169,-544.71,0.00011859,2]
[353692871,1739991098179,-515.07,0.00011859,2]
[353692872,1739991098188,-500.0,0.00011859,2]
[353692873,1739991098198,-500.0,0.00011859,2]
[353692874,1739991098207,-864.21,0.00011859,2]
[353692875,1739991098217,-1217.73,0.00011859,2]
[353692876,1739991098226,-1242.44,0.00011859,2]
[353692877,1739991098235,-608.9,0.00011859,2]
[353692878,1739991098244,-500.0,0.00011859,2]
[353692879,1739991098254,-500.0,0.00011859,2]
[353692880,1739991098263,-1333.33,0.00011859,2]
[353692881,1739991098274,-2099.28,0.00011859,2]
[353692882,1739991098283,-646.88,0.00011859,2]
[353692883,1739991098291,-1098.74,0.00011859,2]
[353692884,1739991098300,-631.78,0.00011859,2]
[353692885,1739991098309,-1305.78,0.00011859,2]
[353692886,1739991098319,-814.94,0.00011859,2]
[353692887,1739991098329,-500.00959504,0.00011859,2]
[353692888,1739991098338,-591.42,0.00011859,2]
[353692889,1739991098348,-500.0,0.00011859,2]
[353692890,1739991098357,-1698.82,0.00011859,2]
[353692891,1739991098366,-500.0,0.00011859,2]
[353692892,1739991098375,-1656.29,0.00011859,2]
[353692893,1739991098385,-958.07,0.00011859,2]
[353692894,1739991098394,-1140.78,0.00011859,2]
[353692895,1739991098404,-1343.79,0.00011859,2]
[353692896,1739991098414,-500.0,0.00011859,2]
[353692897,1739991098425,-500.0,0.00011859,2]
[353692898,1739991098435,-3616.83,0.00011859,2]
[353692899,1739991098449,-1109.34,0.00011859,2]
[353692900,1739991098458,-940.17,0.00011859,2]
[353692901,1739991098468,-500.0,0.00011859,2]
[353692902,1739991098478,-1068.94,0.00011859,2]
[353692903,1739991098489,-248.07,0.00011859,2]
[353692904,1739991098499,-1192.02,0.00011859,2]
[353692905,1739991098508,-1134.66,0.00011859,2]
[353692906,1739991098518,-500.0,0.00011859,2]
[353692907,1739991098529,-1387.53,0.00011859,2]
[353692908,1739991098538,-220.21950288,0.00011859,2]
[353692909,1739991098547,-500.0,0.00011859,2]
[353692910,1739991098556,-525.63,0.00011859,2]
[353692911,1739991098566,-500.0,0.00011859,2]
[353692912,1739991098575,-1867.51,0.00011859,2]
[353692913,1739991098584,-1262.86,0.00011859,2]
[353692914,1739991098593,-1225.46,0.00011859,2]
[353692915,1739991098603,-500.0,0.00011859,2]
[353692916,1739991098612,-1283.85,0.00011859,2]
[353692917,1739991098622,-1033.15,0.00011859,2]
[353692918,1739991098631,-1890.5,0.00011859,2]
[353692919,1739991098641,-457.64815472,0.00011859,2]
[353692920,1739991098651,-1247.13,0.00011859,2]
[353692921,1739991098660,-500.0,0.00011859,2]
[353692922,1739991098669,-953.52,0.00011859,2]
[353692923,1739991098681,-701.13,0.00011859,2]
[353692924,1739991098690,-606.51,0.00011859,2]
[353692925,1739991098700,-500.0,0.00011859,2]
[353692926,1739991098709,-837.99,0.00011859,2]
[353692927,1739991098718,-852.55,0.00011859,2]
[353692928,1739991098727,-1040.5,0.00011859,2]
[353692929,1739991098736,-626.51,0.00011859,2]
[353692930,1739991098745,-500.0,0.00011859,2]
[353692931,1739991098754,-500.0,0.00011859,2]
[353692932,1739991098763,-1225.45,0.00011859,2]
[353692933,1739991098772,-500.0,0.0001186,2]
[353692934,1739991098781,-711.12,0.0001186,2]
[353692935,1739991098790,-500.0,0.0001186,2]
[353692936,1739991098799,-500.0,0.0001186,2]
[353692937,1739991098808,-567.75,0.0001186,2]
[353692938,1739991098817,-774.79,0.0001186,2]
[353692939,1739991098826,-648.92,0.0001186,2]
[353692940,1739991098836,-500.0,0.0001186,2]
[353692941,1739991098845,-500.0,0.0001186,2]
[353692942,1739991098854,-939.76,0.0001186,2]
[353692943,1739991098863,-500.0,0.0001186,2]
[353692944,1739991098872,-726.31,0.0001186,2]
[353692945,1739991098883,-527.6,0.0001186,2]
[353692946,1739991098892,-637.14,0.0001186,2]
[353692947,1739991098901,-501.4,0.0001186,2]
[353692948,1739991098910,-550.13,0.0001186,2]
[353692949,1739991098919,-500.0,0.0001186,2]
[353692950,1739991098929,-605.64,0.0001186,2]
[353692951,1739991098939,-500.0,0.0001186,2]
[353692952,1739991098948,-500.0,0.0001186,2]
[353692953,1739991098958,-670.06,0.0001186,2]
[353692954,1739991098967,-500.0,0.0001186,2]
[353692955,1739991098977,-500.0,0.0001186,2]
[353692956,1739991098987,-500.0,0.0001186,2]
[353692957,1739991098997,-741.15,0.0001186,2]
[353692958,1739991099006,-500.0,0.0001186,2]
[353692959,1739991099016,-917.52,0.0001186,2]
[353692960,1739991099026,-653.65,0.0001186,2]
[353692961,1739991099037,-452.16913912,0.0001186,2]
[353692962,1739991099046,-500.0,0.0001186,2]
[353692963,1739991099055,-500.0,0.0001186,2]
[353692964,1739991099064,-575.12,0.0001186,2]
[353692965,1739991099074,-500.0,0.0001186,2]
[353692966,1739991099083,-1008.4,0.0001186,2]
[353692967,1739991099093,-648.67,0.0001186,2]
[353692968,1739991099102,-500.0,0.0001186,2]
[353692969,1739991099112,-709.82,0.0001186,2]
[353692970,1739991099121,-500.0,0.0001186,2]
[353692971,1739991099130,-759.69,0.0001186,2]
[353692972,1739991099140,-939.45,0.0001186,2]
[353692973,1739991099150,-934.24,0.0001186,2]
[353692974,1739991099160,-1565.74,0.0001186,2]
[353692975,1739991099171,-500.0,0.0001186,2]
[353692976,1739991099181,-779.39,0.0001186,2]
[353692977,1739991099190,-1114.74,0.0001186,2]
[353692978,1739991099199,-500.0,0.0001186,2]
[353692979,1739991099209,-500.0,0.0001186,2]
[353692980,1739991099218,-500.0,0.0001186,2]
[353692981,1739991099228,-1307.87,0.0001186,2]
[353692982,1739991099238,-500.0,0.0001186,2]
[353692983,1739991099248,-1563.31,0.0001186,2]
[353692984,1739991099258,-500.0,0.0001186,2]
[353692985,1739991099268,-626.84,0.0001186,2]
[353692986,1739991099278,-500.0,0.0001186,2]
[353692987,1739991099287,-1098.62,0.0001186,2]
[353692988,1739991099297,-602.42,0.0001186,2]
[353692989,1739991099307,-1563.53,0.0001186,2]
[353692990,1739991099317,-500.0,0.0001186,2]
[353692991,1739991099327,-1617.89,0.0001186,2]
[353692992,1739991099339,-568.32,0.0001186,2]
[353692993,1739991099349,-612.6334774,0.0001186,2]
[353692994,1739991099359,-1902.45,0.0001186,2]
[353692995,1739991099368,-500.0,0.0001186,2]
[353692996,1739991099377,-997.72,0.0001186,2]
[353692997,1739991099386,-1224.85,0.0001186,2]
[353692998,1739991099396,-1076.75,0.0001186,2]
[353692999,1739991099406,-1287.1,0.0001186,2]
[353693000,1739991099415,-507.43,0.0001186,2]
[353693001,1739991099427,-1834.21,0.0001186,2]
[353693002,1739991099437,-1131.11,0.0001186,2]
[353693003,1739991099448,-1818.6,0.0001186,2]
[353693004,1739991099459,-500.0,0.0001186,2]
[353693005,1739991099468,-967.39,0.0001186,2]
[353693006,1739991099479,-613.64,0.0001186,2]
[353693007,1739991099489,-500.0,0.0001186,2]
[353693008,1739991099498,-1954.75,0.0001186,2]
[353693009,1739991099508,-515.75641906,0.0001186,2]
[353693010,1739991099518,-1010.26,0.0001186,2]
[353693011,1739991099530,-500.0,0.0001186,2]
[353693012,1739991099539,-651.03,0.0001186,2]
[353693013,1739991099549,-825.62,0.0001186,2]
[353693014,1739991099559,-500.0,0.0001186,2]
[353693015,1739991099568,-500.0,0.0001186,2]
[353693016,1739991099578,-842.88,0.0001186,2]
[353693017,1739991099588,-500.0,0.0001186,2]
[353693018,1739991099598,-500.0,0.0001186,2]
[353693019,1739991099608,-1110.11,0.0001186,2]
[353693020,1739991099617,-774.36,0.0001186,2]
[353693021,1739991099627,-811.92,0.0001186,2]
[353693022,1739991099636,-1151.56,0.0001186,2]
[353693023,1739991099646,-500.0,0.0001186,2]
[353693024,1739991099656,-500.0,0.0001186,2]
[353693025,1739991099665,-1042.18,0.0001186,2]
[353693026,1739991099676,-500.0,0.0001186,2]
[353693027,1739991099686,-534.83,0.0001186,2]
[353693028,1739991099696,-639.70314627,0.0001186,2]
[353693029,1739991099705,-619.91,0.0001186,2]
[353693030,1739991099714,-533.51,0.0001186,2]
[353693031,1739991099724,-581.26,0.0001186,2]
[353693032,1739991099733,-500.0,0.0001186,2]
[353693033,1739991099742,-500.0,0.0001186,2]
[353693034,1739991099751,-500.0,0.0001186,2]
[353693035,1739991099761,-500.0,0.0001186,2]
[353693036,1739991099770,-500.0,0.0001186,2]
[353693037,1739991099779,-500.0,0.0001186,2]
[353693038,1739991099789,-626.42000713,0.0001186,2]
[353693039,1739991099798,-500.0,0.0001186,2]
[353693040,1739991099807,-849.02,0.0001186,2]
[353693041,1739991099816,-563.08,0.0001186,2]
[353693042,1739991099826,-758.16,0.0001186,2]
[353693043,1739991099836,-500.0,0.0001186,2]
[353693044,1739991099846,-500.0,0.0001186,2]
[353693045,1739991099856,-177.92527862,0.000119,2]
[353693046,1739991099865,-150.0,0.00011906,2]
[353693047,1739991099875,-1285.43,0.0001194,2]
[353693048,1739991099884,-2055.78,0.0001194,2]
[353693049,1739991099894,-1176.26,0.0001194,2]
[353693050,1739991099903,-1598.02,0.0001194,2]
[353693051,1739991099913,-1177.64,0.0001194,2]
[353693052,1739991099923,-1728.13,0.0001194,2]
[353693053,1739991099932,-1464.57,0.0001194,2]
[353693054,1739991099941,-988.1,0.0001194,2]
[353693055,1739991099951,-1523.71,0.0001194,2]
[353693056,1739991099960,-1697.79,0.0001194,2]
[353693057,1739991099970,-914.84,0.0001194,2]
[353693058,1739991099979,-1345.01,0.0001194,2]
[353693059,1739991099989,-1899.5,0.0001194,2]
[353693060,1739991099999,-835.97,0.0001194,2]
[353693061,1739991100009,-1253.59,0.0001194,2]
[353693062,1739991100019,-676.35,0.0001194,2]
[353693063,1739991100028,-1199.2,0.0001194,2]
[353693064,1739991100038,-1444.06,0.0001194,2]
[353693065,1739991100048,-1165.51,0.0001194,2]
[353693066,1739991100058,-1110.09,0.0001194,2]
[353693067,1739991100067,-955.77,0.0001194,2]
[353693068,1739991100077,-1702.36,0.0001194,2]
[353693069,1739991100087,-500.0,0.0001194,2]
[353693070,1739991100097,-1068.07,0.0001194,2]
[353693071,1739991100106,-541.29,0.0001194,2]
[353693072,1739991100117,-1380.32,0.0001194,2]
[353693073,1739991100127,-500.0,0.00011941,2]
[353693074,1739991100136,-564.03,0.00011941,2]
[353693075,1739991100146,-500.0,0.00011941,2]
[353693076,1739991100338,-958.09,0.00011941,2]
[353693077,1739991100348,-500.0,0.00011941,2]
[353693078,1739991100358,-638.44,0.00011941,2]
[353693079,1739991100367,-500.0,0.00011941,2]
[353693080,1739991100378,-1305.17,0.00011941,2]
[353693081,1739991100387,-500.0,0.00011941,2]
[353693082,1739991100397,-500.0,0.00011941,2]
[353693083,1739991100407,-335.282174,0.00011941,2]
[353693084,1739991100416,-1013.4,0.00011941,2]
[353693085,1739991100426,-445.363227,0.00011941,2]
[353693086,1739991100436,-800.82,0.00011941,2]
[353693087,1739991100448,-566.24,0.00011941,2]
[353693088,1739991100459,-500.0,0.00011941,2]
[353693089,1739991100469,-1291.22,0.00011941,2]
[353693090,1739991100478,-705.7,0.00011941,2]
[353693091,1739991100489,-1007.94,0.00011941,2]
[353693092,1739991100499,-267.89852947,0.00011941,2]
[353693093,1739991100509,-500.0,0.00011941,2]
[353693094,1739991100519,-500.0,0.00011941,2]
[353693095,1739991100531,-1100.17,0.00011941,2]
[353693096,1739991100542,-1164.92,0.00011941,2]
[353693097,1739991100552,-1009.77,0.00011941,2]
[353693098,1739991100562,-1086.24,0.00011941,2]
[353693099,1739991100571,-1103.11,0.00011941,2]
[353693100,1739991100581,-500.0,0.00011941,2]
[353693101,1739991100591,-256.34089574,0.00011941,2]
[353693102,1739991100600,-689.09,0.00011941,2]
[353693103,1739991100610,-500.0,0.00011941,2]
[353693104,1739991100620,-1109.15,0.00011941,2]
[353693105,1739991100629,-752.25,0.00011941,2]
[353693106,1739991100639,-712.53,0.00011941,2]
[353693107,1739991100649,-500.0,0.00011941,2]
[353693108,1739991100659,-844.15,0.00011941,2]
[353693109,1739991100668,-1035.94,0.00011941,2]
[353693110,1739991100679,-1177.99,0.00011941,2]
[353693111,1739991100688,-970.06,0.00011941,2]
[353693112,1739991100698,-842.16,0.00011941,2]
[353693113,1739991100707,-1231.95,0.00011941,2]
[353693114,1739991100716,-833.68,0.00011941,2]
[353693115,1739991100726,-1384.51,0.00011941,2]
[353693116,1739991100736,-992.43,0.00011941,2]
[353693117,1739991100746,-700.4,0.00011941,2]
[353693118,1739991100756,-896.41,0.00011941,2]
[353693119,1739991100766,-500.0,0.00011941,2]
[353693120,1739991100776,-835.28,0.00011941,2]
[353693121,1739991100785,-730.1,0.00011941,2]
[353693122,1739991100795,-638.47,0.00011941,2]
[353693123,1739991100804,-722.91,0.00011941,2]
[353693124,1739991100816,-700.98,0.00011941,2]
[353693125,1739991100825,-500.0,0.00011941,2]
[353693126,1739991100834,-887.61,0.00011941,2]
[353693127,1739991100843,-1299.23,0.00011941,2]
[353693128,1739991100855,-537.11,0.00011941,2]
[353693129,1739991100865,-1023.26,0.00011941,2]
[353693130,1739991100875,-500.0,0.00011941,2]
[353693131,1739991100886,-1193.06,0.00011941,2]
[353693132,1739991100896,-809.28,0.00011941,2]
[353693133,1739991100906,-569.98,0.00011941,2]
[353693134,1739991100916,-947.29,0.00011941,2]
[353693135,1739991100927,-738.85,0.00011941,2]
[353693136,1739991100936,-500.0,0.00011941,2]
[353693137,1739991100946,-819.36,0.00011941,2]
[353693138,1739991100955,-504.01,0.00011941,2]
[353693139,1739991100965,-841.31,0.00011941,2]
[353693140,1739991100975,-716.57,0.00011941,2]
[353693141,1739991100984,-1059.78,0.00011941,2]
[353693142,1739991100994,-685.17,0.00011941,2]
[353693143,1739991101003,-948.49,0.00011941,2]
[353693144,1739991101013,-1210.93,0.00011941,2]
[353693145,1739991101022,-1232.61,0.00011941,2]
[353693146,1739991101032,-660.75,0.00011941,2]
[353693147,1739991101042,-722.62,0.00011941,2]
[353693148,1739991101052,-856.89,0.00011941,2]
[353693149,1739991101061,-529.4,0.00011941,2]
[353693150,1739991101070,-500.0,0.00011941,2]
[353693151,1739991101079,-562.58,0.00011941,2]
[353693152,1739991101090,-500.0,0.00011941,2]
[353693153,1739991101099,-1123.65,0.00011941,2]
[353693154,1739991101110,-767.14,0.00011941,2]
[353693155,1739991101119,-838.25,0.00011941,2]
[353693156,1739991101129,-857.74,0.00011941,2]
[353693157,1739991101139,-702.31,0.00011941,2]
[353693158,1739991101148,-500.0,0.00011941,2]
[353693159,1739991101159,-1022.47,0.00011941,2]
[353693160,1739991101168,-766.99,0.00011941,2]
[353693161,1739991101179,-1271.18,0.00011941,2]
[353693162,1739991101189,-562.14,0.00011941,2]
[353693163,1739991101199,-1255.93,0.00011941,2]
[353693164,1739991101208,-735.72,0.00011941,2]
[353693165,1739991101217,-1023.77,0.00011941,2]
[353693166,1739991101226,-500.0,0.00011941,2]
[353693167,1739991101236,-741.16,0.00011941,2]
[353693168,1739991101246,-508.07,0.00011941,2]
[353693169,1739991101256,-500.0,0.00011941,2]
[353693170,1739991101267,-1492.46,0.00011941,2]
[353693171,1739991101278,-1211.99,0.00011941,2]
[353693172,1739991101287,-908.55,0.00011941,2]
[353693173,1739991101297,-1115.3,0.00011941,2]
[353693174,1739991101307,-622.28,0.00011941,2]
[353693175,1739991101316,-725.41,0.00011941,2]
[353693176,1739991101326,-1312.13,0.00011941,2]
[353693177,1739991101335,-500.0,0.00011941,2]
[353693178,1739991101344,-500.0,0.00011941,2]
[353693179,1739991101354,-1135.89,0.00011941,2]
[353693180,1739991101364,-500.0,0.00011941,2]
[353693181,1739991101374,-626.24,0.00011941,2]
[353693182,1739991101384,-873.22,0.00011941,2]
[353693183,1739991101394,-842.88,0.00011941,2]
[353693184,1739991101404,-828.64,0.00011941,2]
[353693185,1739991101413,-1067.13,0.00011941,2]
[353693186,1739991101423,-760.82,0.00011941,2]
[353693187,1739991101432,-959.81,0.00011941,2]
[353693188,1739991101445,-1130.2,0.00011941,2]
[353693189,1739991101455,-621.03,0.00011941,2]
[353693190,1739991101466,-837.8,0.00011941,2]
[353693191,1739991101475,-500.0,0.00011941,2]
[353693192,1739991101485,-500.0,0.00011941,2]
[353693193,1739991101495,-687.97,0.00011941,2]
[353693194,1739991101506,-524.85,0.00011941,2]
[353693195,1739991101516,-763.25,0.00011941,2]
[353693196,1739991101527,-1453.26,0.00011941,2]
[353693197,1739991101536,-2178.41,0.00011941,2]
[353693198,1739991101545,-2978.68,0.00011941,2]
[353693199,1739991101554,-867.64,0.00011941,2]
[353693200,1739991101564,-500.0,0.00011941,2]
[353693201,1739991101575,-909.17,0.00011941,2]
[353693202,1739991101585,-500.0,0.00011941,2]
[353693203,1739991101595,-500.0,0.00011941,2]
[353693204,1739991101605,-944.41,0.00011941,2]
[353693205,1739991101615,-1667.3,0.00011941,2]
[353693206,1739991101625,-1335.65,0.00011941,2]
[353693207,1739991101635,-1536.77,0.00011941,2]
[353693208,1739991101644,-500.0,0.00011941,2]
[353693209,1739991101654,-2300.26,0.00011941,2]
[353693210,1739991101664,-1054.96,0.00011941,2]
[353693211,1739991101673,-3967.01,0.00011941,2]
[353693212,1739991101683,-2151.49,0.00011941,2]
[353693213,1739991101693,-500.0,0.00011941,2]
[353693214,1739991101704,-1026.98,0.00011941,2]
[353693215,1739991101714,-1717.95,0.00011941,2]
[353693216,1739991101723,-723.0,0.00011941,2]
[353693217,1739991101733,-858.82,0.00011941,2]
[353693218,1739991101743,-500.0,0.00011941,2]
[353693219,1739991101753,-736.71,0.00011941,2]
[353693220,1739991101763,-731.07,0.00011941,2]
[353693221,1739991101773,-808.06,0.00011941,2]
[353693222,1739991101784,-500.0,0.00011941,2]
[353693223,1739991101794,-1003.52,0.00011941,2]
[353693224,1739991101804,-500.0,0.00011941,2]
[353693225,1739991101814,-1216.45,0.00011941,2]
[353693226,1739991101823,-897.65,0.00011941,2]
[353693227,1739991101833,-969.77,0.00011941,2]
[353693228,1739991101842,-1228.25,0.00011941,2]
[353693229,1739991101852,-597.7,0.00011941,2]
[353693230,1739991101862,-2264.91,0.00011941,2]
[353693231,1739991101871,-500.0,0.00011941,2]
[353693232,1739991101881,-1031.26,0.00011941,2]
[353693233,1739991101892,-813.49,0.00011941,2]
[353693234,1739991101903,-943.59,0.00011941,2]
[353693235,1739991101914,-807.9,0.00011941,2]
[353693236,1739991101925,-952.43,0.00011941,2]
[353693237,1739991101935,-1249.19,0.00011941,2]
[353693238,1739991101945,-1931.39,0.00011941,2]
[353693239,1739991101955,-699.69,0.00011941,2]
[353693240,1739991101965,-736.37,0.00011941,2]
[353693241,1739991101974,-1349.59,0.00011941,2]
[353693242,1739991101984,-2136.43,0.00011941,2]
[353693243,1739991101995,-1308.13,0.00011941,2]
[353693244,1739991102004,-763.21,0.00011941,2]
[353693245,1739991102015,-500.0,0.00011941,2]
[353693246,1739991102024,-676.6,0.00011941,2]
[353693247,1739991102034,-1669.19,0.00011941,2]
[353693248,1739991102045,-2496.14,0.00011941,2]
[353693249,1739991102055,-838.79,0.00011941,2]
[353693250,1739991102065,-500.0,0.00011941,2]
[353693251,1739991102074,-844.7,0.00011941,2]
[353693252,1739991102083,-1038.95,0.00011941,2]
[353693253,1739991102093,-500.0,0.00011941,2]
[353693254,1739991102103,-643.34,0.00011941,2]
[353693255,1739991102113,-862.23,0.00011941,2]
[353693256,1739991102123,-1682.85,0.00011941,2]
[353693257,1739991102133,-972.98,0.00011941,2]
[353693258,1739991102142,-1170.77,0.00011941,2]
[353693259,1739991102152,-1036.38,0.00011941,2]
[353693260,1739991102162,-665.65,0.00011941,2]
[353693261,1739991102173,-500.0,0.00011941,2]
[353693262,1739991102183,-816.32,0.00011941,2]
[353693263,1739991102192,-1472.21,0.00011941,2]
[353693264,1739991102202,-500.0,0.00011941,2]
[353693265,1739991102211,-1143.91,0.00011941,2]
[353693266,1739991102222,-500.0,0.00011941,2]
[353693267,1739991102233,-7684.69,0.00011941,2]
[353693268,1739991102243,-500.0,0.00011941,2]
[353693269,1739991102252,-1239.55,0.00011941,2]
[353693270,1739991102262,-1609.82,0.00011941,2]
[353693271,1739991102272,-694.56,0.00011941,2]
[353693272,1739991102282,-1000.0,0.00011941,2]
[353693273,1739991102292,-677.2,0.00011941,2]
[353693274,1739991102302,-1545.54,0.00011941,2]
[353693275,1739991102312,-1288.85,0.00011941,2]
[353693276,1739991102322,-1349.76,0.00011941,2]
[353693277,1739991102331,-591.57,0.00011941,2]
[353693278,1739991102341,-585.98,0.00011941,2]
[353693279,1739991102350,-1045.64,0.00011941,2]
[353693280,1739991102360,-544.71,0.00011941,2]
[353693281,1739991102370,-515.07,0.00011941,2]
[353693282,1739991102380,-500.0,0.00011941,2]
[353693283,1739991102390,-864.21,0.00011941,2]
[353693284,1739991102400,-1217.73,0.00011941,2]
[353693285,1739991102409,-1242.44,0.00011941,2]
[353693286,1739991102419,-608.9,0.00011941,2]
[353693287,1739991102430,-500.0,0.00011941,2]
[353693288,1739991102440,-500.0,0.00011941,2]
[353693289,1739991102452,-1333.33,0.00011941,2]
[353693290,1739991102462,-2099.28,0.00011941,2]
[353693291,1739991102472,-646.88,0.00011941,2]
[353693292,1739991102483,-1098.74,0.00011941,2]
[353693293,1739991102493,-631.78,0.00011941,2]
[353693294,1739991102502,-1305.78,0.00011941,2]
[353693295,1739991102512,-814.94,0.00011941,2]
[353693296,1739991102522,-591.42,0.00011941,2]
[353693297,1739991102532,-500.0,0.00011941,2]
[353693298,1739991102542,-1698.82,0.00011941,2]
[353693299,1739991102552,-500.0,0.00011941,2]
[353693300,1739991102562,-1656.29,0.00011941,2]
[353693301,1739991102572,-958.07,0.00011941,2]
[353693302,1739991102582,-1140.78,0.00011941,2]
[353693303,1739991102592,-1343.79,0.00011941,2]
[353693304,1739991102602,-500.0,0.00011941,2]
[353693305,1739991102612,-500.0,0.00011941,2]
[353693306,1739991102622,-1109.34,0.00011941,2]
[353693307,1739991102631,-940.17,0.00011941,2]
[353693308,1739991102640,-500.0,0.00011941,2]
[353693309,1739991102649,-3616.83,0.00011941,2]
[353693310,1739991102659,-1068.94,0.00011941,2]
[353693311,1739991102669,-1192.02,0.00011941,2]
[353693312,1739991102681,-1134.66,0.00011941,2]
[353693313,1739991102691,-500.0,0.00011941,2]
[353693314,1739991102701,-1387.53,0.00011941,2]
[353693315,1739991102711,-500.0,0.00011941,2]
[353693316,1739991102721,-525.63,0.00011941,2]
[353693317,1739991102731,-500.0,0.00011941,2]
[353693318,1739991102741,-1867.51,0.00011941,2]
[353693319,1739991102751,-1262.86,0.00011941,2]
[353693320,1739991102761,-1225.46,0.00011941,2]
[353693321,1739991102771,-500.0,0.00011941,2]
[353693322,1739991102781,-1283.85,0.00011941,2]
[353693323,1739991102790,-1033.15,0.00011941,2]
[353693324,1739991102800,-1890.5,0.00011941,2]
[353693325,1739991102810,-1247.13,0.00011941,2]
[353693326,1739991102819,-500.0,0.00011941,2]
[353693327,1739991102828,-953.52,0.00011941,2]
[353693328,1739991102838,-701.13,0.00011941,2]
[353693329,1739991102847,-606.51,0.00011941,2]
[353693330,1739991102857,-500.0,0.00011941,2]
[353693331,1739991102866,-837.99,0.00011941,2]
[353693332,1739991102876,-852.55,0.00011941,2]
[353693333,1739991102886,-1040.5,0.00011941,2]
[353693334,1739991102895,-626.51,0.00011941,2]
[353693335,1739991102905,-500.0,0.00011941,2]
[353693336,1739991102915,-500.0,0.00011941,2]
[353693337,1739991102925,-1225.45,0.00011941,2]
[353693338,1739991102935,-500.0,0.00011942,2]